[Event "Early-Titled-Tuesday-Blitz-April-02-2024"]
[Site "Chess.com"]
[Date "2024.04.02"]
[Round "10"]
[White "GrotBchess"]
[Black "Bykov_Egor"]
[Result "0-1"]
[WhiteElo "2435"]
[BlackElo "2633"]
[TimeControl "180+1"]
[EndTime "9:56:57 PDT"]
[Termination "Bykov_Egor won by checkmate"]

1. e4 {[%clk 0:03:00.9]} 1... e6 {[%clk 0:02:56]} 2. d4 {[%clk 0:03:00.3]} 2...
d5 {[%clk 0:02:56.5]} 3. Nc3 {[%clk 0:03:00.4]} 3... Nf6 {[%clk 0:02:55.7]} 4.
e5 {[%clk 0:03:00.5]} 4... Nfd7 {[%clk 0:02:55.8]} 5. f4 {[%clk 0:03:01.1]} 5...
c5 {[%clk 0:02:56.2]} 6. Nf3 {[%clk 0:03:01.4]} 6... Nc6 {[%clk 0:02:56.8]} 7.
Be3 {[%clk 0:03:01.7]} 7... a6 {[%clk 0:02:56.3]} 8. Qd2 {[%clk 0:03:00.5]} 8...
b5 {[%clk 0:02:55.9]} 9. Ne2 {[%clk 0:02:59.7]} 9... Qb6 {[%clk 0:02:48.2]} 10.
c3 {[%clk 0:02:56.9]} 10... a5 {[%clk 0:02:18.3]} 11. a3 {[%clk 0:02:52.9]}
11... Ba6 {[%clk 0:02:14.6]} 12. Ng3 {[%clk 0:02:42]} 12... b4 {[%clk 0:02:11]}
13. axb4 {[%clk 0:02:41.5]} 13... cxb4 {[%clk 0:02:06.6]} 14. Bxa6 {[%clk
0:02:40.4]} 14... Qxa6 {[%clk 0:02:06.7]} 15. f5 {[%clk 0:02:32.2]} 15... Be7
{[%clk 0:01:28.4]} 16. fxe6 {[%clk 0:02:30.1]} 16... fxe6 {[%clk 0:01:27.8]} 17.
Bg5 {[%clk 0:02:28.5]} 17... O-O {[%clk 0:01:25.1]} 18. Bxe7 {[%clk 0:02:17.7]}
18... bxc3 {[%clk 0:01:17.7]} 19. bxc3 {[%clk 0:02:13.8]} 19... Nxe7 {[%clk
0:01:16.8]} 20. Kf2 {[%clk 0:02:08.6]} 20... a4 {[%clk 0:01:11.1]} 21. Rhb1
{[%clk 0:02:04.9]} 21... a3 {[%clk 0:00:44.9]} 22. Rb3 {[%clk 0:02:02.8]} 22...
Nb6 {[%clk 0:00:43.5]} 23. Rbxa3 {[%clk 0:01:26.1]} 23... Qxa3 {[%clk 0:00:43]}
24. Rxa3 {[%clk 0:01:26.6]} 24... Rxa3 {[%clk 0:00:43.5]} 25. h4 {[%clk
0:01:23.8]} 25... Nc4 {[%clk 0:00:41.5]} 26. Qg5 {[%clk 0:01:17.9]} 26... Ra7
{[%clk 0:00:18.3]} 27. Kg1 {[%clk 0:01:12.6]} 27... h6 {[%clk 0:00:17.8]} 28.
Qg4 {[%clk 0:01:08.5]} 28... Nf5 {[%clk 0:00:18]} 29. Kh2 {[%clk 0:00:55.6]}
29... Nce3 {[%clk 0:00:17.3]} 30. Qg6 {[%clk 0:00:55.3]} 30... Nxg3 {[%clk
0:00:16.6]} 31. Qxe6+ {[%clk 0:00:52.7]} 31... Kh8 {[%clk 0:00:16.4]} 32. Kxg3
{[%clk 0:00:52.4]} 32... Ra2 {[%clk 0:00:16.1]} 33. Ne1 {[%clk 0:00:22]} 33...
Re2 {[%clk 0:00:16.4]} 34. Qe7 {[%clk 0:00:16.1]} 34... Nf5+ {[%clk 0:00:16.5]}
35. Kf3 {[%clk 0:00:15.1]} 35... Nxe7+ {[%clk 0:00:16.6]} 36. Kxe2 {[%clk
0:00:15.2]} 36... Kg8 {[%clk 0:00:17.1]} 37. Nd3 {[%clk 0:00:14.8]} 37... g5
{[%clk 0:00:15.8]} 38. h5 {[%clk 0:00:14.5]} 38... Kf7 {[%clk 0:00:16]} 39. Nc5
{[%clk 0:00:13.6]} 39... Rc8 {[%clk 0:00:16.3]} 40. Kd3 {[%clk 0:00:13]} 40...
Rxc5 {[%clk 0:00:16.2]} 41. dxc5 {[%clk 0:00:12.6]} 41... Ke6 {[%clk 0:00:16.2]}
42. c4 {[%clk 0:00:08.7]} 42... Kxe5 {[%clk 0:00:16.1]} 43. cxd5 {[%clk
0:00:08.2]} 43... Kxd5 {[%clk 0:00:17]} 44. c6 {[%clk 0:00:06.9]} 44... Nxc6
{[%clk 0:00:17.2]} 45. Ke3 {[%clk 0:00:07]} 45... Ne5 {[%clk 0:00:17.4]} 46. Kf2
{[%clk 0:00:06.4]} 46... Ke4 {[%clk 0:00:17.5]} 47. Kg3 {[%clk 0:00:07.3]} 47...
Ke3 {[%clk 0:00:17.6]} 48. Kh3 {[%clk 0:00:07.4]} 48... Kf2 {[%clk 0:00:18.2]}
49. g3 {[%clk 0:00:06.3]} 49... Kf3 {[%clk 0:00:17.9]} 50. Kh2 {[%clk
0:00:06.1]} 50... g4 {[%clk 0:00:18.2]} 51. Kh1 {[%clk 0:00:06]} 51... Kxg3
{[%clk 0:00:19.1]} 52. Kg1 {[%clk 0:00:06.9]} 52... Kf3 {[%clk 0:00:19.3]} 53.
Kh1 {[%clk 0:00:07.8]} 53... g3 {[%clk 0:00:19.7]} 54. Kg1 {[%clk 0:00:08.6]}
54... g2 {[%clk 0:00:20]} 55. Kh2 {[%clk 0:00:08.6]} 55... Kf2 {[%clk
0:00:20.6]} 56. Kh3 {[%clk 0:00:08.6]} 56... g1=Q {[%clk 0:00:21.5]} 57. Kh4
{[%clk 0:00:09.1]} 57... Qg3# {[%clk 0:00:22.1]} 0-1

[Event "Early-Titled-Tuesday-Blitz-April-02-2024"]
[Site "Chess.com"]
[Date "2024.04.02"]
[Round "10"]
[White "rhwr"]
[Black "Kratos031"]
[Result "0-1"]
[WhiteElo "2253"]
[BlackElo "2456"]
[TimeControl "180+1"]
[EndTime "9:56:57 PDT"]
[Termination "Kratos031 won on time"]

1. e4 {[%clk 0:03:00.3]} 1... e6 {[%clk 0:02:59.2]} 2. Nf3 {[%clk 0:03:00.3]}
2... c5 {[%clk 0:02:58.8]} 3. e5 {[%clk 0:03:01.2]} 3... Nc6 {[%clk 0:02:58.4]}
4. d3 {[%clk 0:02:57.7]} 4... d6 {[%clk 0:02:58.8]} 5. exd6 {[%clk 0:02:57.6]}
5... Bxd6 {[%clk 0:02:59.7]} 6. Nc3 {[%clk 0:02:58]} 6... Nf6 {[%clk 0:03:00]}
7. Be2 {[%clk 0:02:58.5]} 7... O-O {[%clk 0:03:00.1]} 8. O-O {[%clk 0:02:59.2]}
8... b6 {[%clk 0:03:00.7]} 9. Be3 {[%clk 0:02:59.7]} 9... Bb7 {[%clk 0:03:01.2]}
10. d4 {[%clk 0:02:59.5]} 10... Nd5 {[%clk 0:02:59.9]} 11. Nxd5 {[%clk
0:02:59.4]} 11... exd5 {[%clk 0:02:59.5]} 12. dxc5 {[%clk 0:02:59.6]} 12... Bxc5
{[%clk 0:02:59.3]} 13. Bxc5 {[%clk 0:02:58.9]} 13... bxc5 {[%clk 0:03:00.2]} 14.
c3 {[%clk 0:02:58]} 14... Re8 {[%clk 0:02:55.7]} 15. Re1 {[%clk 0:02:57.4]}
15... Qd6 {[%clk 0:02:55.9]} 16. Bb5 {[%clk 0:02:57.3]} 16... h6 {[%clk
0:02:52.8]} 17. Qa4 {[%clk 0:02:53.4]} 17... a6 {[%clk 0:02:50.7]} 18. Bd3
{[%clk 0:02:47.5]} 18... Qf6 {[%clk 0:02:10.8]} 19. h3 {[%clk 0:02:42.9]} 19...
Re6 {[%clk 0:01:59.3]} 20. Rxe6 {[%clk 0:02:37.4]} 20... fxe6 {[%clk 0:01:58.6]}
21. Re1 {[%clk 0:02:32.6]} 21... e5 {[%clk 0:01:56.9]} 22. Bf1 {[%clk
0:02:19.2]} 22... e4 {[%clk 0:01:55]} 23. Nd2 {[%clk 0:02:16.7]} 23... Rf8
{[%clk 0:01:52.3]} 24. f3 {[%clk 0:02:11.8]} 24... Qg5 {[%clk 0:01:32.8]} 25.
Qd1 {[%clk 0:01:55.5]} 25... e3 {[%clk 0:01:04]} 26. Nb3 {[%clk 0:01:47.9]}
26... d4 {[%clk 0:01:04.2]} 27. Bc4+ {[%clk 0:01:37.5]} 27... Kh8 {[%clk
0:01:02.5]} 28. cxd4 {[%clk 0:01:31.4]} 28... cxd4 {[%clk 0:01:01.9]} 29. Qe2
{[%clk 0:01:15.1]} 29... Ne5 {[%clk 0:00:40.2]} 30. Nxd4 {[%clk 0:01:11.1]}
30... Bxf3 {[%clk 0:00:39.2]} 31. Nxf3 {[%clk 0:00:31.9]} 31... Nxf3+ {[%clk
0:00:37.6]} 32. Kh1 {[%clk 0:00:30.7]} 32... Nxe1 {[%clk 0:00:34.4]} 33. Qxe1
{[%clk 0:00:30.1]} 33... Qf4 {[%clk 0:00:34.5]} 34. Bxa6 {[%clk 0:00:28.3]}
34... Rd8 {[%clk 0:00:25.8]} 35. Be2 {[%clk 0:00:17.8]} 35... Qd4 {[%clk
0:00:19.5]} 36. b3 {[%clk 0:00:14.4]} 36... Qb2 {[%clk 0:00:18.2]} 37. Bf3
{[%clk 0:00:10.1]} 37... Qd2 {[%clk 0:00:16.6]} 38. Qf1 {[%clk 0:00:08.3]} 38...
Rc8 {[%clk 0:00:15.5]} 39. Kh2 {[%clk 0:00:07.6]} 39... Qd6+ {[%clk 0:00:15]}
40. g3 {[%clk 0:00:06.7]} 40... Rc2+ {[%clk 0:00:13]} 41. Bg2 {[%clk 0:00:04.7]}
41... Qd8 {[%clk 0:00:07.6]} 42. Qf5 {[%clk 0:00:03.8]} 42... Rd2 {[%clk
0:00:06.2]} 43. Qe4 {[%clk 0:00:01.7]} 43... e2 {[%clk 0:00:02.9]} 44. h4 {[%clk
0:00:01.7]} 44... Rc2 {[%clk 0:00:03]} 45. Qxc2 {[%clk 0:00:01.5]} 45... e1=Q
{[%clk 0:00:03.3]} 0-1

[Event "Early-Titled-Tuesday-Blitz-April-02-2024"]
[Site "Chess.com"]
[Date "2024.04.02"]
[Round "10"]
[White "Heliosis11"]
[Black "noblerone"]
[Result "0-1"]
[WhiteElo "2381"]
[BlackElo "2546"]
[TimeControl "180+1"]
[EndTime "9:57:02 PDT"]
[Termination "noblerone won by checkmate"]

1. e4 {[%clk 0:03:00.9]} 1... c5 {[%clk 0:02:45.4]} 2. Nf3 {[%clk 0:03:00.9]}
2... e6 {[%clk 0:02:42.8]} 3. Nc3 {[%clk 0:02:59.9]} 3... Nc6 {[%clk 0:02:41.4]}
4. d4 {[%clk 0:02:58.2]} 4... cxd4 {[%clk 0:02:42.3]} 5. Nxd4 {[%clk 0:02:58.4]}
5... Qc7 {[%clk 0:02:38.6]} 6. Be3 {[%clk 0:02:55.8]} 6... a6 {[%clk 0:02:37.5]}
7. Qf3 {[%clk 0:02:56.1]} 7... Nf6 {[%clk 0:02:33]} 8. O-O-O {[%clk 0:02:55.7]}
8... Nxd4 {[%clk 0:02:11.4]} 9. Bxd4 {[%clk 0:02:50.7]} 9... e5 {[%clk
0:02:11.7]} 10. Be3 {[%clk 0:02:48.3]} 10... d6 {[%clk 0:01:46.7]} 11. Bg5
{[%clk 0:02:44.5]} 11... Be7 {[%clk 0:01:43.4]} 12. Bxf6 {[%clk 0:02:44.1]}
12... Bxf6 {[%clk 0:01:43.6]} 13. Nd5 {[%clk 0:02:45]} 13... Bg5+ {[%clk
0:01:39.3]} 14. Kb1 {[%clk 0:02:45.4]} 14... Qd8 {[%clk 0:01:39.1]} 15. Bc4
{[%clk 0:02:34.9]} 15... O-O {[%clk 0:01:36.5]} 16. g3 {[%clk 0:02:34.9]} 16...
Be6 {[%clk 0:01:36.3]} 17. h4 {[%clk 0:02:34.6]} 17... Be7 {[%clk 0:01:35.8]}
18. h5 {[%clk 0:02:31.5]} 18... h6 {[%clk 0:01:33.5]} 19. Qe3 {[%clk 0:02:22]}
19... Rc8 {[%clk 0:01:30.4]} 20. Bb3 {[%clk 0:02:21.4]} 20... b5 {[%clk
0:01:23.4]} 21. f4 {[%clk 0:02:20.3]} 21... Bg4 {[%clk 0:01:21.9]} 22. Rdf1
{[%clk 0:02:06.7]} 22... a5 {[%clk 0:01:14.8]} 23. fxe5 {[%clk 0:02:05.2]} 23...
dxe5 {[%clk 0:01:12.1]} 24. Qa7 {[%clk 0:02:03.4]} 24... Bg5 {[%clk 0:01:03.5]}
25. a4 {[%clk 0:01:48.6]} 25... bxa4 {[%clk 0:00:59.9]} 26. Bxa4 {[%clk
0:01:44]} 26... Be6 {[%clk 0:00:53.7]} 27. Bb3 {[%clk 0:01:40.1]} 27... Kh8
{[%clk 0:00:51.2]} 28. Rf2 {[%clk 0:01:02.7]} 28... Ra8 {[%clk 0:00:50.1]} 29.
Qc5 {[%clk 0:00:59.7]} 29... a4 {[%clk 0:00:48.2]} 30. Ba2 {[%clk 0:00:59.5]}
30... a3 {[%clk 0:00:40.4]} 31. b4 {[%clk 0:00:56.9]} 31... Rc8 {[%clk
0:00:37.5]} 32. Qb5 {[%clk 0:00:55]} 32... Rb8 {[%clk 0:00:33.8]} 33. Qa4 {[%clk
0:00:52.7]} 33... Ra8 {[%clk 0:00:32.8]} 34. Qb3 {[%clk 0:00:51.2]} 34... Qd6
{[%clk 0:00:30.3]} 35. c4 {[%clk 0:00:47.9]} 35... Rfb8 {[%clk 0:00:27.5]} 36.
c5 {[%clk 0:00:47.3]} 36... Qc6 {[%clk 0:00:26.4]} 37. Rhf1 {[%clk 0:00:32.8]}
37... Ra7 {[%clk 0:00:24]} 38. Ka1 {[%clk 0:00:11.1]} 38... Qa6 {[%clk
0:00:11.6]} 39. Rb1 {[%clk 0:00:09.4]} 39... Qc6 {[%clk 0:00:09.1]} 40. Rc2
{[%clk 0:00:08]} 40... f6 {[%clk 0:00:09.1]} 41. b5 {[%clk 0:00:07.8]} 41... Qc8
{[%clk 0:00:08.5]} 42. b6 {[%clk 0:00:06.2]} 42... Ra5 {[%clk 0:00:08.1]} 43.
Qb4 {[%clk 0:00:06.4]} 43... Raa8 {[%clk 0:00:06]} 44. Nc7 {[%clk 0:00:05.7]}
44... Rb7 {[%clk 0:00:05.2]} 45. Bxe6 {[%clk 0:00:05]} 45... Qd8 {[%clk
0:00:04.6]} 46. Bd5 {[%clk 0:00:05.1]} 46... Be3 {[%clk 0:00:04.4]} 47. Nxa8
{[%clk 0:00:02.3]} 47... Bd4+ {[%clk 0:00:05.3]} 48. Ka2 {[%clk 0:00:02.2]}
48... Qxa8 {[%clk 0:00:05.3]} 49. Bxb7 {[%clk 0:00:02.2]} 49... Qxb7 {[%clk
0:00:05.5]} 50. Qxa3 {[%clk 0:00:02.2]} 50... Qf7+ {[%clk 0:00:06.4]} 51. Rb3
{[%clk 0:00:02]} 51... Qxh5 {[%clk 0:00:06.2]} 52. Qa8+ {[%clk 0:00:02.3]} 52...
Kh7 {[%clk 0:00:05.9]} 53. b7 {[%clk 0:00:02.9]} 53... Qh1 {[%clk 0:00:06.4]}
54. b8=Q {[%clk 0:00:02.3]} 54... Qa1# {[%clk 0:00:06.6]} 0-1

[Event "Early-Titled-Tuesday-Blitz-April-02-2024"]
[Site "Chess.com"]
[Date "2024.04.02"]
[Round "10"]
[White "MarkusRagger"]
[Black "HajiyevKanan"]
[Result "0-1"]
[WhiteElo "2698"]
[BlackElo "2618"]
[TimeControl "180+1"]
[EndTime "9:57:04 PDT"]
[Termination "HajiyevKanan won by checkmate"]

1. e4 {[%clk 0:03:00.9]} 1... c6 {[%clk 0:02:59.7]} 2. Nf3 {[%clk 0:02:58.6]}
2... d5 {[%clk 0:03:00.6]} 3. Nc3 {[%clk 0:02:58.5]} 3... a6 {[%clk 0:03:01.2]}
4. d4 {[%clk 0:02:58.1]} 4... Bg4 {[%clk 0:03:00.9]} 5. h3 {[%clk 0:02:58.5]}
5... Bh5 {[%clk 0:03:00.9]} 6. exd5 {[%clk 0:02:58.5]} 6... cxd5 {[%clk
0:03:01.8]} 7. g4 {[%clk 0:02:58.7]} 7... Bg6 {[%clk 0:03:02.1]} 8. Ne5 {[%clk
0:02:59.3]} 8... Nc6 {[%clk 0:03:02.5]} 9. h4 {[%clk 0:02:59.7]} 9... Nxe5
{[%clk 0:03:00.7]} 10. dxe5 {[%clk 0:02:58.7]} 10... h5 {[%clk 0:03:01.3]} 11.
Qxd5 {[%clk 0:02:50.7]} 11... Qxd5 {[%clk 0:02:55.3]} 12. Nxd5 {[%clk
0:02:51.6]} 12... O-O-O {[%clk 0:02:53.7]} 13. Bg2 {[%clk 0:02:47.9]} 13... hxg4
{[%clk 0:02:47.5]} 14. Bg5 {[%clk 0:02:40.6]} 14... f6 {[%clk 0:02:18]} 15. Bf4
{[%clk 0:02:38.9]} 15... e6 {[%clk 0:02:16.4]} 16. Nb6+ {[%clk 0:02:37]} 16...
Kc7 {[%clk 0:02:16.9]} 17. Nc4 {[%clk 0:02:35.7]} 17... Rd4 {[%clk 0:01:58.8]}
18. exf6+ {[%clk 0:02:17.7]} 18... Rxf4 {[%clk 0:01:58.3]} 19. Ne5 {[%clk
0:02:17.8]} 19... Be4 {[%clk 0:01:51.7]} 20. O-O-O {[%clk 0:02:17.6]} 20... Bxg2
{[%clk 0:01:40.3]} 21. Rhg1 {[%clk 0:02:09.9]} 21... Bd5 {[%clk 0:01:20.1]} 22.
Ng6 {[%clk 0:02:09.7]} 22... Rxf2 {[%clk 0:01:01.8]} 23. Nxh8 {[%clk 0:02:07]}
23... Nxf6 {[%clk 0:00:57.1]} 24. Nf7 {[%clk 0:01:57.2]} 24... Ne4 {[%clk
0:00:45]} 25. Ne5 {[%clk 0:01:50.7]} 25... g3 {[%clk 0:00:43.4]} 26. Nd3 {[%clk
0:01:45.7]} 26... Rh2 {[%clk 0:00:41.7]} 27. Rdf1 {[%clk 0:01:22.6]} 27... Bd6
{[%clk 0:00:34.9]} 28. Rf7+ {[%clk 0:01:18.9]} 28... Kb6 {[%clk 0:00:35.4]} 29.
Rxg7 {[%clk 0:01:13.1]} 29... Rxh4 {[%clk 0:00:35.7]} 30. b3 {[%clk 0:01:04.3]}
30... Nf2 {[%clk 0:00:22.8]} 31. Ne1 {[%clk 0:00:52.6]} 31... Ba3+ {[%clk
0:00:22]} 32. Kd2 {[%clk 0:00:45.3]} 32... Rh2 {[%clk 0:00:20.6]} 33. Kc3 {[%clk
0:00:30.8]} 33... Bc5 {[%clk 0:00:17.6]} 34. R1xg3 {[%clk 0:00:22.1]} 34... Ne4+
{[%clk 0:00:17.6]} 35. Kb2 {[%clk 0:00:21.7]} 35... Nxg3 {[%clk 0:00:18.1]} 36.
Rxg3 {[%clk 0:00:18.4]} 36... Bf2 {[%clk 0:00:18.6]} 37. Rg5 {[%clk 0:00:13.1]}
37... Bxe1 {[%clk 0:00:17.1]} 38. a3 {[%clk 0:00:14]} 38... Be4 {[%clk
0:00:15.8]} 39. a4 {[%clk 0:00:14.9]} 39... Rxc2+ {[%clk 0:00:15.6]} 40. Ka3
{[%clk 0:00:14.3]} 40... Bd5 {[%clk 0:00:13.7]} 41. a5+ {[%clk 0:00:13.7]} 41...
Bxa5 {[%clk 0:00:12.4]} 42. Rg3 {[%clk 0:00:14.1]} 42... Rc3 {[%clk 0:00:11.8]}
43. Rg2 {[%clk 0:00:13.5]} 43... Rxb3+ {[%clk 0:00:12.2]} 44. Ka4 {[%clk
0:00:13.5]} 44... Rb4+ {[%clk 0:00:10.6]} 45. Ka3 {[%clk 0:00:13.6]} 45... Kb5
{[%clk 0:00:09.4]} 46. Rg1 {[%clk 0:00:12.7]} 46... Ra4+ {[%clk 0:00:08.4]} 47.
Kb2 {[%clk 0:00:12.8]} 47... Ra2+ {[%clk 0:00:09]} 48. Kb1 {[%clk 0:00:12.4]}
48... Bc3 {[%clk 0:00:09.2]} 49. Rg3 {[%clk 0:00:11.3]} 49... Ra1+ {[%clk
0:00:09.3]} 50. Kc2 {[%clk 0:00:10.7]} 50... Be5 {[%clk 0:00:08.5]} 51. Re3
{[%clk 0:00:10.5]} 51... Bd4 {[%clk 0:00:08.7]} 52. Rd3 {[%clk 0:00:09.6]} 52...
Be4 {[%clk 0:00:08.8]} 53. Kb3 {[%clk 0:00:10]} 53... Rb1+ {[%clk 0:00:06.5]}
54. Ka2 {[%clk 0:00:09.3]} 54... Bxd3 {[%clk 0:00:06.1]} 55. Ka3 {[%clk
0:00:10.2]} 55... Kc4 {[%clk 0:00:02.8]} 56. Ka2 {[%clk 0:00:10.1]} 56... Ra1#
{[%clk 0:00:03]} 0-1

[Event "Early-Titled-Tuesday-Blitz-April-02-2024"]
[Site "Chess.com"]
[Date "2024.04.02"]
[Round "10"]
[White "Antosha_Chekhonte"]
[Black "ploxoi"]
[Result "0-1"]
[WhiteElo "2578"]
[BlackElo "2478"]
[TimeControl "180+1"]
[EndTime "9:57:16 PDT"]
[Termination "ploxoi won on time"]

1. e4 {[%clk 0:03:00.9]} 1... c5 {[%clk 0:02:59.3]} 2. Nf3 {[%clk 0:03:00.7]}
2... e6 {[%clk 0:02:59.9]} 3. g3 {[%clk 0:03:00.4]} 3... Nc6 {[%clk 0:02:58.8]}
4. Bg2 {[%clk 0:03:00.3]} 4... d5 {[%clk 0:02:59.4]} 5. exd5 {[%clk 0:02:59.2]}
5... Qxd5 {[%clk 0:02:59.3]} 6. O-O {[%clk 0:02:54.4]} 6... Nge7 {[%clk
0:02:58.5]} 7. Re1 {[%clk 0:02:54]} 7... Nf5 {[%clk 0:02:58]} 8. Ne5 {[%clk
0:02:52.3]} 8... Qd6 {[%clk 0:02:54.6]} 9. Nxc6 {[%clk 0:02:44]} 9... bxc6
{[%clk 0:02:53.6]} 10. Na3 {[%clk 0:02:41]} 10... Be7 {[%clk 0:02:45.3]} 11. Nc4
{[%clk 0:02:40.3]} 11... Qc7 {[%clk 0:02:45.9]} 12. d3 {[%clk 0:02:31.2]} 12...
f6 {[%clk 0:02:33.6]} 13. c3 {[%clk 0:02:13.2]} 13... O-O {[%clk 0:02:30.8]} 14.
h4 {[%clk 0:01:33]} 14... Rb8 {[%clk 0:02:22.6]} 15. h5 {[%clk 0:01:32.9]} 15...
e5 {[%clk 0:02:19.7]} 16. Be4 {[%clk 0:01:28]} 16... Rd8 {[%clk 0:02:08.7]} 17.
Qf3 {[%clk 0:01:27.5]} 17... Nd6 {[%clk 0:02:02.2]} 18. Bxc6 {[%clk 0:01:27.5]}
18... Nxc4 {[%clk 0:01:41.3]} 19. dxc4 {[%clk 0:01:27.3]} 19... Bb7 {[%clk
0:01:37.6]} 20. Bxb7 {[%clk 0:01:24.5]} 20... Qxb7 {[%clk 0:01:36]} 21. Qxb7
{[%clk 0:01:23.7]} 21... Rxb7 {[%clk 0:01:36.9]} 22. b3 {[%clk 0:01:24.2]} 22...
Kf7 {[%clk 0:01:35.1]} 23. Be3 {[%clk 0:01:22.3]} 23... Rbd7 {[%clk 0:01:34.5]}
24. Kf1 {[%clk 0:01:22.1]} 24... Rd3 {[%clk 0:01:33.3]} 25. Rac1 {[%clk
0:01:21.7]} 25... a5 {[%clk 0:01:25.1]} 26. Ke2 {[%clk 0:01:21.3]} 26... f5
{[%clk 0:01:17.5]} 27. Red1 {[%clk 0:01:21.2]} 27... e4 {[%clk 0:01:17.5]} 28.
Rxd3 {[%clk 0:01:16.7]} 28... Rxd3 {[%clk 0:01:18.1]} 29. Bd2 {[%clk 0:00:39.6]}
29... Bf6 {[%clk 0:01:13.8]} 30. Be1 {[%clk 0:00:35.8]} 30... Ke6 {[%clk
0:01:10.8]} 31. Rd1 {[%clk 0:00:35.2]} 31... Bxc3 {[%clk 0:01:07]} 32. Bxc3
{[%clk 0:00:29.4]} 32... Rxc3 {[%clk 0:01:07.2]} 33. Rd5 {[%clk 0:00:25.6]}
33... Rc2+ {[%clk 0:00:52]} 34. Kf1 {[%clk 0:00:20.6]} 34... Rxa2 {[%clk
0:00:52.2]} 35. Rxc5 {[%clk 0:00:21]} 35... Kd6 {[%clk 0:00:37.2]} 36. Rxf5
{[%clk 0:00:19.5]} 36... a4 {[%clk 0:00:34.3]} 37. b4 {[%clk 0:00:17.2]} 37...
Rc2 {[%clk 0:00:29.7]} 38. Ra5 {[%clk 0:00:11.4]} 38... Rxc4 {[%clk 0:00:27.9]}
39. Rxa4 {[%clk 0:00:11.8]} 39... Ke7 {[%clk 0:00:22.7]} 40. Ra7+ {[%clk
0:00:11.6]} 40... Kf6 {[%clk 0:00:23]} 41. Rb7 {[%clk 0:00:11.3]} 41... Rc2
{[%clk 0:00:22.1]} 42. Ke1 {[%clk 0:00:10.1]} 42... Rb2 {[%clk 0:00:21.9]} 43.
Rb5 {[%clk 0:00:08.3]} 43... h6 {[%clk 0:00:20.6]} 44. g4 {[%clk 0:00:08.6]}
44... Ke6 {[%clk 0:00:19.9]} 45. Rb6+ {[%clk 0:00:06.3]} 45... Kf7 {[%clk
0:00:19.8]} 46. Kf1 {[%clk 0:00:05.5]} 46... Ke7 {[%clk 0:00:18.9]} 47. Kg1
{[%clk 0:00:05.3]} 47... Kf7 {[%clk 0:00:18.8]} 48. Kf1 {[%clk 0:00:05.3]} 48...
Ke7 {[%clk 0:00:19]} 49. Rb7+ {[%clk 0:00:05.6]} 49... Kf6 {[%clk 0:00:19.1]}
50. Rb5 {[%clk 0:00:06.2]} 50... Kf7 {[%clk 0:00:18.5]} 51. Kg2 {[%clk
0:00:03.9]} 51... e3 {[%clk 0:00:18.5]} 52. Rf5+ {[%clk 0:00:02.7]} 52... Kg8
{[%clk 0:00:15.4]} 53. b5 {[%clk 0:00:02.4]} 53... exf2 {[%clk 0:00:14.8]} 54.
g5 {[%clk 0:00:01.5]} 54... hxg5 {[%clk 0:00:12.5]} 55. Rxg5 {[%clk 0:00:02.4]}
55... Kh7 {[%clk 0:00:12.4]} 56. Rf5 {[%clk 0:00:02.1]} 56... Kh6 {[%clk
0:00:12.5]} 0-1

[Event "Early-Titled-Tuesday-Blitz-April-02-2024"]
[Site "Chess.com"]
[Date "2024.04.02"]
[Round "10"]
[White "MikeSailer"]
[Black "Itay121"]
[Result "0-1"]
[WhiteElo "2183"]
[BlackElo "2526"]
[TimeControl "180+1"]
[EndTime "9:57:18 PDT"]
[Termination "Itay121 won on time"]

1. d4 {[%clk 0:02:59.7]} 1... Nf6 {[%clk 0:02:56.1]} 2. Nf3 {[%clk 0:03:00.2]}
2... g6 {[%clk 0:02:54.1]} 3. Bf4 {[%clk 0:03:00.4]} 3... Bg7 {[%clk 0:02:52.6]}
4. e3 {[%clk 0:03:01]} 4... O-O {[%clk 0:02:52.9]} 5. Be2 {[%clk 0:03:01.5]}
5... d6 {[%clk 0:02:49.2]} 6. h3 {[%clk 0:03:01.8]} 6... c6 {[%clk 0:02:47.1]}
7. O-O {[%clk 0:03:02.3]} 7... Nbd7 {[%clk 0:02:47.3]} 8. c4 {[%clk 0:03:02.8]}
8... Re8 {[%clk 0:02:39.9]} 9. Nc3 {[%clk 0:03:02.6]} 9... e5 {[%clk 0:02:40.3]}
10. Bh2 {[%clk 0:03:02.5]} 10... Qe7 {[%clk 0:02:40]} 11. Re1 {[%clk 0:03:02.4]}
11... e4 {[%clk 0:02:40.4]} 12. Nd2 {[%clk 0:03:02.5]} 12... d5 {[%clk
0:02:40.4]} 13. cxd5 {[%clk 0:03:01.4]} 13... cxd5 {[%clk 0:02:41.3]} 14. Nb5
{[%clk 0:03:01.2]} 14... Rd8 {[%clk 0:02:24.4]} 15. Bc7 {[%clk 0:02:48.1]} 15...
Re8 {[%clk 0:02:22.3]} 16. Bd6 {[%clk 0:02:31.3]} 16... Qe6 {[%clk 0:02:17.1]}
17. Bh2 {[%clk 0:02:31.1]} 17... Nb6 {[%clk 0:01:21.6]} 18. Nc7 {[%clk
0:02:29.2]} 18... Qe7 {[%clk 0:01:22.2]} 19. Nxe8 {[%clk 0:02:14.5]} 19... Nxe8
{[%clk 0:01:18.9]} 20. Rc1 {[%clk 0:02:11.6]} 20... Bd7 {[%clk 0:01:14.6]} 21.
Qb3 {[%clk 0:02:06.8]} 21... h5 {[%clk 0:01:14.2]} 22. Qa3 {[%clk 0:02:00.9]}
22... Qg5 {[%clk 0:01:09.2]} 23. Kh1 {[%clk 0:01:57.6]} 23... Qf5 {[%clk
0:00:59.1]} 24. Rf1 {[%clk 0:01:44]} 24... h4 {[%clk 0:00:53.1]} 25. Qa5 {[%clk
0:01:22.5]} 25... Qg5 {[%clk 0:00:48.3]} 26. Bf4 {[%clk 0:01:13.7]} 26... Qe7
{[%clk 0:00:46.1]} 27. Qc5 {[%clk 0:01:08.3]} 27... Qxc5 {[%clk 0:00:34.7]} 28.
Rxc5 {[%clk 0:01:06.9]} 28... Bc6 {[%clk 0:00:32.7]} 29. b3 {[%clk 0:00:52.1]}
29... Bf8 {[%clk 0:00:32.9]} 30. Rc2 {[%clk 0:00:51.1]} 30... a5 {[%clk
0:00:32.5]} 31. a4 {[%clk 0:00:49.2]} 31... Nd7 {[%clk 0:00:30.9]} 32. Bb5
{[%clk 0:00:42.2]} 32... Nb8 {[%clk 0:00:28.9]} 33. Bxc6 {[%clk 0:00:40.6]}
33... Nxc6 {[%clk 0:00:29.2]} 34. Nb1 {[%clk 0:00:34.8]} 34... Nb4 {[%clk
0:00:27.9]} 35. Rd2 {[%clk 0:00:29.1]} 35... Nc6 {[%clk 0:00:27]} 36. Nc3 {[%clk
0:00:26.8]} 36... Nb4 {[%clk 0:00:23.6]} 37. Nb5 {[%clk 0:00:23.6]} 37... Rd8
{[%clk 0:00:21.4]} 38. f3 {[%clk 0:00:22.3]} 38... exf3 {[%clk 0:00:19.1]} 39.
Rxf3 {[%clk 0:00:20.7]} 39... Ng7 {[%clk 0:00:18.2]} 40. Bg5 {[%clk 0:00:19.9]}
40... Re8 {[%clk 0:00:18.4]} 41. Nc7 {[%clk 0:00:15.9]} 41... Rc8 {[%clk
0:00:17.9]} 42. Nb5 {[%clk 0:00:15.7]} 42... Nf5 {[%clk 0:00:17]} 43. Bf6 {[%clk
0:00:10.8]} 43... Rc1+ {[%clk 0:00:16.8]} 44. Kh2 {[%clk 0:00:11]} 44... Ng3
{[%clk 0:00:15.3]} 45. Rxg3 {[%clk 0:00:11.5]} 45... hxg3+ {[%clk 0:00:15.9]}
46. Kxg3 {[%clk 0:00:11.8]} 46... Nc2 {[%clk 0:00:15.6]} 47. Kf3 {[%clk
0:00:08.4]} 47... Ne1+ {[%clk 0:00:14.9]} 48. Ke2 {[%clk 0:00:07.2]} 48... Nxg2
{[%clk 0:00:15]} 49. Kd3 {[%clk 0:00:04.9]} 49... Ne1+ {[%clk 0:00:14.5]} 50.
Ke2 {[%clk 0:00:05.5]} 50... Nc2 {[%clk 0:00:15.2]} 51. Kd3 {[%clk 0:00:04.5]}
51... Nb4+ {[%clk 0:00:15.4]} 52. Ke2 {[%clk 0:00:05.3]} 52... Rc8 {[%clk
0:00:16]} 53. Na3 {[%clk 0:00:04.4]} 53... Nc6 {[%clk 0:00:15]} 54. Nc2 {[%clk
0:00:04.2]} 54... Re8 {[%clk 0:00:15.2]} 55. Ne1 {[%clk 0:00:02.5]} 55... Bb4
{[%clk 0:00:15.1]} 56. Rd1 {[%clk 0:00:00.7]} 56... Re6 {[%clk 0:00:15.8]} 0-1